[Event "*** Titled Tuesday Blitz"]
[Site "Chess.com"]
[Date "2020.12.29"]
[Round "5"]
[White "champ2005"]
[Black "petrpalachev"]
[Result "0-1"]
[WhiteElo "2985"]
[BlackElo "2732"]
[TimeControl "180+1"]
[EndTime "10:56:12 PST"]
[Termination "petrpalachev won by resignation"]

1. d4 {[%clk 0:03:00.9]} 1... d5 {[%clk 0:02:56.6]} 2. Bf4 {[%clk 0:03:01.1]}
2... Nf6 {[%clk 0:02:55.1]} 3. e3 {[%clk 0:03:01.3]} 3... c5 {[%clk 0:02:55.7]}
4. c3 {[%clk 0:03:00.3]} 4... Nc6 {[%clk 0:02:56]} 5. Nd2 {[%clk 0:03:00.6]}
5... Bf5 {[%clk 0:02:54.4]} 6. Ngf3 {[%clk 0:02:59.7]} 6... e6 {[%clk
0:02:53.5]} 7. Qb3 {[%clk 0:03:00]} 7... Qc8 {[%clk 0:02:50.3]} 8. Nh4 {[%clk
0:02:56.7]} 8... Bg6 {[%clk 0:02:49.9]} 9. Nxg6 {[%clk 0:02:49]} 9... hxg6
{[%clk 0:02:50.8]} 10. Be2 {[%clk 0:02:48.8]} 10... Be7 {[%clk 0:02:49.2]} 11.
h3 {[%clk 0:02:44.6]} 11... O-O {[%clk 0:02:48.6]} 12. O-O {[%clk 0:02:44.2]}
12... a6 {[%clk 0:02:46.1]} 13. Rfe1 {[%clk 0:02:26.8]} 13... Rd8 {[%clk
0:02:46]} 14. Bf1 {[%clk 0:02:25.7]} 14... b5 {[%clk 0:02:38]} 15. dxc5 {[%clk
0:02:15.8]} 15... Bxc5 {[%clk 0:02:37.5]} 16. Nf3 {[%clk 0:02:13.7]} 16... Qb7
{[%clk 0:02:34.3]} 17. a3 {[%clk 0:02:04.2]} 17... Bd6 {[%clk 0:02:27.2]} 18.
Rad1 {[%clk 0:01:59.9]} 18... Ne4 {[%clk 0:02:12.2]} 19. Qc2 {[%clk 0:01:55.1]}
19... Rac8 {[%clk 0:02:08.6]} 20. Qb1 {[%clk 0:01:34.6]} 20... a5 {[%clk
0:02:04.1]} 21. Bxd6 {[%clk 0:01:22.8]} 21... Nxd6 {[%clk 0:02:05]} 22. b4
{[%clk 0:01:07.9]} 22... Qb6 {[%clk 0:02:01]} 23. Qb3 {[%clk 0:01:03.2]} 23...
Nc4 {[%clk 0:01:52.8]} 24. Bxc4 {[%clk 0:01:01.1]} 24... dxc4 {[%clk 0:01:50.4]}
25. Qc2 {[%clk 0:01:01.7]} 25... a4 {[%clk 0:01:48]} 26. Qe4 {[%clk 0:00:52.4]}
26... Qc7 {[%clk 0:01:46.7]} 27. Ng5 {[%clk 0:00:31.1]} 27... Qe5 {[%clk
0:01:06]} 28. Qxe5 {[%clk 0:00:20.7]} 28... Nxe5 {[%clk 0:01:05.6]} 29. Ne4
{[%clk 0:00:21.2]} 29... Rxd1 {[%clk 0:01:02.1]} 30. Rxd1 {[%clk 0:00:22.1]}
30... Nd3 {[%clk 0:01:03]} 31. Rd2 {[%clk 0:00:19.3]} 31... f6 {[%clk 0:01:00]}
32. f3 {[%clk 0:00:18.9]} 32... Rc6 {[%clk 0:00:58.8]} 33. Nf2 {[%clk
0:00:18.7]} 33... Nxf2 {[%clk 0:00:31.7]} 34. Kxf2 {[%clk 0:00:19.6]} 34... Rb6
{[%clk 0:00:23]} 35. Rd7 {[%clk 0:00:18.8]} 35... e5 {[%clk 0:00:20.4]} 36. e4
{[%clk 0:00:15.7]} 36... g5 {[%clk 0:00:19]} 37. Kg3 {[%clk 0:00:15]} 37... g6
{[%clk 0:00:19.1]} 38. h4 {[%clk 0:00:12.6]} 38... gxh4+ {[%clk 0:00:20]} 39.
Kxh4 {[%clk 0:00:13.5]} 39... Kf8 {[%clk 0:00:19.1]} 40. g4 {[%clk 0:00:14]}
40... Ke8 {[%clk 0:00:17.5]} 41. Rg7 {[%clk 0:00:12.3]} 41... Rd6 {[%clk
0:00:12]} 42. Rxg6 {[%clk 0:00:12.3]} 42... Kf7 {[%clk 0:00:11.3]} 43. Rh6
{[%clk 0:00:12.6]} 43... Kg7 {[%clk 0:00:05.6]} 44. Rh5 {[%clk 0:00:12.8]} 44...
Rd3 {[%clk 0:00:06]} 45. Rf5 {[%clk 0:00:05.2]} 45... Kg6 {[%clk 0:00:03]} 46.
g5 {[%clk 0:00:06.1]} 46... fxg5+ {[%clk 0:00:03.6]} 47. Kg4 {[%clk 0:00:06]}
47... Rxc3 {[%clk 0:00:03.3]} 48. Rxe5 {[%clk 0:00:06.5]} 48... Rxa3 {[%clk
0:00:03]} 49. Rxg5+ {[%clk 0:00:06.7]} 49... Kf6 {[%clk 0:00:02.9]} 50. Rxb5
{[%clk 0:00:07.6]} 50... Rb3 {[%clk 0:00:03.4]} 51. Rb6+ {[%clk 0:00:07.8]}
51... Ke5 {[%clk 0:00:03.8]} 52. Rb5+ {[%clk 0:00:07]} 52... Kd4 {[%clk
0:00:03.8]} 53. Rd5+ {[%clk 0:00:06.7]} 53... Ke3 {[%clk 0:00:04]} 54. e5 {[%clk
0:00:06.8]} 54... c3 {[%clk 0:00:04.2]} 55. e6 {[%clk 0:00:06]} 55... c2 {[%clk
0:00:04.6]} 56. Rc5 {[%clk 0:00:04.1]} 56... Kd2 {[%clk 0:00:04.7]} 57. e7
{[%clk 0:00:03.6]} 57... Re3 {[%clk 0:00:04.5]} 58. Rc7 {[%clk 0:00:02.8]} 58...
Rxe7 {[%clk 0:00:04.6]} 59. Rxe7 {[%clk 0:00:03.2]} 59... c1=Q {[%clk
0:00:04.5]} 60. f4 {[%clk 0:00:03.2]} 60... Qd1+ {[%clk 0:00:04.1]} 61. Kg5
{[%clk 0:00:03.5]} 61... Qg1+ {[%clk 0:00:04.1]} 62. Kf6 {[%clk 0:00:03.9]}
62... Qb6+ {[%clk 0:00:04.6]} 63. Re6 {[%clk 0:00:03.4]} 63... Qxb4 {[%clk
0:00:05]} 64. f5 {[%clk 0:00:04.3]} 64... a3 {[%clk 0:00:05.2]} 65. Kf7 {[%clk
0:00:04.6]} 65... a2 {[%clk 0:00:05.2]} 66. Ra6 {[%clk 0:00:05.5]} 66... Qc4+
{[%clk 0:00:05.4]} 0-1

[Event "*** Titled Tuesday Blitz"]
[Site "Chess.com"]
[Date "2020.12.29"]
[Round "5"]
[White "KononenkoD"]
[Black "Nemsko"]
[Result "0-1"]
[WhiteElo "2451"]
[BlackElo "2319"]
[TimeControl "180+1"]
[EndTime "10:56:19 PST"]
[Termination "Nemsko won by checkmate"]

1. d4 {[%clk 0:02:57.9]} 1... Nf6 {[%clk 0:02:58.3]} 2. c4 {[%clk 0:02:56.3]}
2... e6 {[%clk 0:02:57.7]} 3. g3 {[%clk 0:02:54.7]} 3... d5 {[%clk 0:02:55.1]}
4. Nf3 {[%clk 0:02:54.1]} 4... Bb4+ {[%clk 0:02:55.4]} 5. Bd2 {[%clk 0:02:53.6]}
5... Be7 {[%clk 0:02:55.4]} 6. Bg2 {[%clk 0:02:53.7]} 6... O-O {[%clk 0:02:54]}
7. O-O {[%clk 0:02:54.2]} 7... b6 {[%clk 0:02:54.1]} 8. Qc2 {[%clk 0:02:51.6]}
8... Ba6 {[%clk 0:02:50.4]} 9. Ne5 {[%clk 0:02:50.6]} 9... c6 {[%clk 0:02:49.4]}
10. Nc3 {[%clk 0:02:44.5]} 10... Nfd7 {[%clk 0:02:34.8]} 11. cxd5 {[%clk
0:02:36.9]} 11... cxd5 {[%clk 0:02:33.1]} 12. Bf4 {[%clk 0:02:37]} 12... Nxe5
{[%clk 0:02:19.9]} 13. Bxe5 {[%clk 0:02:37.9]} 13... Nc6 {[%clk 0:02:17.9]} 14.
Qa4 {[%clk 0:02:34.5]} 14... Bb7 {[%clk 0:02:14.3]} 15. Bf4 {[%clk 0:02:34.3]}
15... a6 {[%clk 0:02:10.6]} 16. Be3 {[%clk 0:02:29.7]} 16... b5 {[%clk
0:02:09.8]} 17. Qd1 {[%clk 0:02:29.3]} 17... Bf6 {[%clk 0:02:03.8]} 18. Qd3
{[%clk 0:02:24.3]} 18... Nb4 {[%clk 0:01:50]} 19. Qd2 {[%clk 0:02:22.9]} 19...
Qe7 {[%clk 0:01:46]} 20. Rfc1 {[%clk 0:02:22.3]} 20... Rac8 {[%clk 0:01:45.1]}
21. Nd1 {[%clk 0:02:07.9]} 21... Nc6 {[%clk 0:01:40.7]} 22. Rc5 {[%clk
0:01:57.8]} 22... Na7 {[%clk 0:01:27.2]} 23. Rac1 {[%clk 0:01:56]} 23... Rc6
{[%clk 0:01:25.1]} 24. b4 {[%clk 0:01:49.3]} 24... Rfc8 {[%clk 0:01:24.6]} 25.
Nb2 {[%clk 0:01:49.6]} 25... Qd7 {[%clk 0:01:18.6]} 26. Nd3 {[%clk 0:01:49.5]}
26... Qe8 {[%clk 0:01:06.4]} 27. h4 {[%clk 0:01:46.4]} 27... Be7 {[%clk
0:01:05.6]} 28. Rxc6 {[%clk 0:01:38.6]} 28... Nxc6 {[%clk 0:00:57.3]} 29. Nc5
{[%clk 0:01:37.9]} 29... Bxc5 {[%clk 0:00:39.9]} 30. Rxc5 {[%clk 0:01:34.2]}
30... Ne7 {[%clk 0:00:34.5]} 31. Bf4 {[%clk 0:01:29.5]} 31... Rxc5 {[%clk
0:00:26.3]} 32. dxc5 {[%clk 0:01:24.4]} 32... Bc6 {[%clk 0:00:19.4]} 33. Bd6
{[%clk 0:01:15.7]} 33... Nc8 {[%clk 0:00:18.2]} 34. Qf4 {[%clk 0:01:11.1]} 34...
Qd7 {[%clk 0:00:17.5]} 35. Be5 {[%clk 0:01:08.8]} 35... f6 {[%clk 0:00:17.2]}
36. Bb2 {[%clk 0:01:08.2]} 36... e5 {[%clk 0:00:17.6]} 37. Qf3 {[%clk
0:01:01.1]} 37... Ne7 {[%clk 0:00:17.6]} 38. Qb3 {[%clk 0:01:00.8]} 38... Kf8
{[%clk 0:00:14.4]} 39. Kh2 {[%clk 0:01:00.8]} 39... d4 {[%clk 0:00:12]} 40. Bxc6
{[%clk 0:00:46.7]} 40... Qxc6 {[%clk 0:00:12.9]} 41. e3 {[%clk 0:00:38]} 41...
dxe3 {[%clk 0:00:11.2]} 42. Qxe3 {[%clk 0:00:37.1]} 42... Kg8 {[%clk 0:00:06.9]}
43. f4 {[%clk 0:00:29.2]} 43... e4 {[%clk 0:00:05.9]} 44. Kg2 {[%clk 0:00:19.9]}
44... Qd5 {[%clk 0:00:05.6]} 45. Qd4 {[%clk 0:00:18.2]} 45... Qxd4 {[%clk
0:00:02.7]} 46. Bxd4 {[%clk 0:00:18.1]} 46... Nd5 {[%clk 0:00:03.6]} 47. Kf2
{[%clk 0:00:15.8]} 47... Kf7 {[%clk 0:00:03.6]} 48. f5 {[%clk 0:00:14.8]} 48...
Nxb4 {[%clk 0:00:03.3]} 49. Ke3 {[%clk 0:00:14]} 49... Nc6 {[%clk 0:00:04.2]}
50. Kxe4 {[%clk 0:00:14.2]} 50... Ke7 {[%clk 0:00:04.7]} 51. Be3 {[%clk
0:00:14.1]} 51... Kd7 {[%clk 0:00:04.4]} 52. Kd5 {[%clk 0:00:14.6]} 52... Nb4+
{[%clk 0:00:04.6]} 53. Ke4 {[%clk 0:00:13.4]} 53... Nxa2 {[%clk 0:00:04.9]} 54.
Bd2 {[%clk 0:00:13.1]} 54... Kc6 {[%clk 0:00:02]} 55. Kd4 {[%clk 0:00:13.4]}
55... b4 {[%clk 0:00:02.9]} 56. Kc4 {[%clk 0:00:13.7]} 56... a5 {[%clk 0:00:03]}
57. h5 {[%clk 0:00:11.2]} 57... Nc3 {[%clk 0:00:02.6]} 58. h6 {[%clk 0:00:11.1]}
58... gxh6 {[%clk 0:00:02.9]} 59. Bxh6 {[%clk 0:00:11.6]} 59... Ne4 {[%clk
0:00:03.2]} 60. Bg7 {[%clk 0:00:11.8]} 60... Nxg3 {[%clk 0:00:02.8]} 61. Bxf6
{[%clk 0:00:12.2]} 61... Nxf5 {[%clk 0:00:03.7]} 62. Bg5 {[%clk 0:00:10.6]}
62... h5 {[%clk 0:00:03.8]} 63. Be3 {[%clk 0:00:09.8]} 63... h4 {[%clk
0:00:04.2]} 64. Bg1 {[%clk 0:00:10.7]} 64... h3 {[%clk 0:00:04.7]} 65. Bh2
{[%clk 0:00:11.4]} 65... Nh4 {[%clk 0:00:05.3]} 66. Bg3 {[%clk 0:00:11]} 66...
Nf3 {[%clk 0:00:06.2]} 67. Kd3 {[%clk 0:00:11.9]} 67... h2 {[%clk 0:00:06.6]}
68. Ke3 {[%clk 0:00:12.8]} 68... h1=Q {[%clk 0:00:06.7]} 69. Kf4 {[%clk
0:00:13]} 69... Qf1 {[%clk 0:00:06.6]} 70. Ke3 {[%clk 0:00:13.9]} 70... Ng1
{[%clk 0:00:06.5]} 71. Ke4 {[%clk 0:00:14.8]} 71... Qe2+ {[%clk 0:00:07]} 72.
Kf4 {[%clk 0:00:14.7]} 72... Nf3 {[%clk 0:00:07.5]} 73. Kg4 {[%clk 0:00:15.6]}
73... Nd4+ {[%clk 0:00:07.7]} 74. Kh3 {[%clk 0:00:15.5]} 74... Ne6 {[%clk
0:00:08.6]} 75. Kh4 {[%clk 0:00:15.6]} 75... Nxc5 {[%clk 0:00:09.2]} 76. Kh3
{[%clk 0:00:16.5]} 76... Ne4 {[%clk 0:00:09]} 77. Bh4 {[%clk 0:00:17.4]} 77...
Qf3+ {[%clk 0:00:07.9]} 78. Kh2 {[%clk 0:00:18.3]} 78... Qg4 {[%clk 0:00:07.3]}
79. Be1 {[%clk 0:00:17.6]} 79... Qe2+ {[%clk 0:00:07.1]} 80. Kh1 {[%clk
0:00:18.5]} 80... Qxe1+ {[%clk 0:00:07.5]} 81. Kh2 {[%clk 0:00:19.3]} 81... Qg3+
{[%clk 0:00:07.6]} 82. Kh1 {[%clk 0:00:19.2]} 82... Nf2# {[%clk 0:00:08.5]} 0-1

[Event "*** Titled Tuesday Blitz"]
[Site "Chess.com"]
[Date "2020.12.29"]
[Round "5"]
[White "MPGM"]
[Black "TigrVShlyape"]
[Result "0-1"]
[WhiteElo "2709"]
[BlackElo "2875"]
[TimeControl "180+1"]
[EndTime "10:56:25 PST"]
[Termination "TigrVShlyape won by resignation"]

1. d4 {[%clk 0:03:00.9]} 1... d5 {[%clk 0:02:58.4]} 2. c4 {[%clk 0:03:00.7]}
2... c6 {[%clk 0:02:57.9]} 3. Nf3 {[%clk 0:03:00.3]} 3... Nf6 {[%clk 0:02:57.4]}
4. g3 {[%clk 0:03:00.1]} 4... g6 {[%clk 0:02:56.9]} 5. Bg2 {[%clk 0:02:59.8]}
5... Bg7 {[%clk 0:02:57]} 6. O-O {[%clk 0:02:59.5]} 6... O-O {[%clk 0:02:57.1]}
7. Qb3 {[%clk 0:02:59.5]} 7... Qb6 {[%clk 0:02:56]} 8. Nc3 {[%clk 0:02:58.8]}
8... Rd8 {[%clk 0:02:55.5]} 9. Na4 {[%clk 0:02:55.2]} 9... Qxb3 {[%clk
0:02:46.5]} 10. axb3 {[%clk 0:02:56.1]} 10... Na6 {[%clk 0:02:46]} 11. h3 {[%clk
0:02:51.1]} 11... h6 {[%clk 0:02:37.7]} 12. g4 {[%clk 0:02:40.8]} 12... Be6
{[%clk 0:02:25.6]} 13. c5 {[%clk 0:02:13.6]} 13... h5 {[%clk 0:02:18.7]} 14. g5
{[%clk 0:02:02.2]} 14... Nd7 {[%clk 0:02:14.5]} 15. Bf4 {[%clk 0:01:53.2]} 15...
Bf5 {[%clk 0:02:14.1]} 16. Nc3 {[%clk 0:01:41.3]} 16... e5 {[%clk 0:02:01.3]}
17. Nxe5 {[%clk 0:01:03.4]} 17... Naxc5 {[%clk 0:01:48.4]} 18. Nxd7 {[%clk
0:00:58.8]} 18... Nxd7 {[%clk 0:01:48]} 19. e3 {[%clk 0:00:59.1]} 19... a6
{[%clk 0:01:35.3]} 20. Na4 {[%clk 0:00:57.2]} 20... Re8 {[%clk 0:01:34]} 21.
Rfc1 {[%clk 0:00:54.5]} 21... Bf8 {[%clk 0:01:33.3]} 22. h4 {[%clk 0:00:46]}
22... Bb4 {[%clk 0:01:29.1]} 23. Nc3 {[%clk 0:00:42.2]} 23... a5 {[%clk
0:01:26.1]} 24. f3 {[%clk 0:00:36.2]} 24... Be6 {[%clk 0:01:24.1]} 25. Kf2
{[%clk 0:00:34.7]} 25... Be7 {[%clk 0:01:20.9]} 26. Rd1 {[%clk 0:00:19.5]} 26...
Kg7 {[%clk 0:00:57.5]} 27. Rd2 {[%clk 0:00:19.5]} 27... Rf8 {[%clk 0:00:54.6]}
28. e4 {[%clk 0:00:19.1]} 28... dxe4 {[%clk 0:00:51.6]} 29. fxe4 {[%clk
0:00:20]} 29... Bxb3 {[%clk 0:00:50.1]} 30. d5 {[%clk 0:00:20.3]} 30... Bc5+
{[%clk 0:00:48.5]} 31. Kg3 {[%clk 0:00:20.1]} 31... Nb6 {[%clk 0:00:38.2]} 32.
dxc6 {[%clk 0:00:17.2]} 32... bxc6 {[%clk 0:00:38]} 33. Be5+ {[%clk 0:00:15.7]}
33... Kg8 {[%clk 0:00:36.9]} 34. Bf6 {[%clk 0:00:14.9]} 34... Nc4 {[%clk
0:00:33.6]} 35. Re2 {[%clk 0:00:14.8]} 35... Rfe8 {[%clk 0:00:29.1]} 36. e5
{[%clk 0:00:14.9]} 36... Rac8 {[%clk 0:00:29]} 37. Ne4 {[%clk 0:00:13.1]} 37...
Bd4 {[%clk 0:00:29]} 38. Nd2 {[%clk 0:00:11.6]} 38... Nxd2 {[%clk 0:00:28.4]}
39. Rxd2 {[%clk 0:00:11.6]} 39... Bxe5+ {[%clk 0:00:28.4]} 40. Bxe5 {[%clk
0:00:11.4]} 40... Rxe5 {[%clk 0:00:28.4]} 41. Rc1 {[%clk 0:00:10.7]} 41... c5
{[%clk 0:00:27.8]} 42. Rc3 {[%clk 0:00:10.9]} 42... a4 {[%clk 0:00:27.8]} 43.
Rf3 {[%clk 0:00:08.5]} 43... Rce8 {[%clk 0:00:26.4]} 44. Rd7 {[%clk 0:00:06.6]}
44... Re3 {[%clk 0:00:26]} 45. Kf2 {[%clk 0:00:05.7]} 45... Re2+ {[%clk
0:00:25.2]} 46. Kg3 {[%clk 0:00:06.1]} 46... R8e3 {[%clk 0:00:24.1]} 47. Rxe3
{[%clk 0:00:05.4]} 47... Rxe3+ {[%clk 0:00:24]} 48. Kf2 {[%clk 0:00:06.1]} 48...
Re5 {[%clk 0:00:22.9]} 49. Rc7 {[%clk 0:00:05.5]} 49... Kf8 {[%clk 0:00:22.7]}
50. Bf3 {[%clk 0:00:05.5]} 50... Ke8 {[%clk 0:00:16.3]} 51. Kg3 {[%clk
0:00:05.7]} 51... Kd8 {[%clk 0:00:16.1]} 52. Ra7 {[%clk 0:00:05.5]} 52... Re3
{[%clk 0:00:15.6]} 53. Kf4 {[%clk 0:00:05.5]} 53... Rd3 {[%clk 0:00:15.7]} 54.
Ra8+ {[%clk 0:00:05.2]} 54... Kc7 {[%clk 0:00:15.4]} 55. Ra7+ {[%clk 0:00:05.1]}
55... Kb6 {[%clk 0:00:14.8]} 56. Re7 {[%clk 0:00:03.4]} 56... Rd4+ {[%clk
0:00:14.1]} 57. Re4 {[%clk 0:00:02.9]} 57... Kb5 {[%clk 0:00:11.4]} 58. Ke5
{[%clk 0:00:02.8]} 58... Rxe4+ {[%clk 0:00:09.1]} 59. Bxe4 {[%clk 0:00:02.6]}
59... Kb4 {[%clk 0:00:09.4]} 60. Kf6 {[%clk 0:00:03]} 60... a3 {[%clk
0:00:07.1]} 61. bxa3+ {[%clk 0:00:03.4]} 61... Kxa3 {[%clk 0:00:07.5]} 62. Bc6
{[%clk 0:00:03.7]} 62... Kb4 {[%clk 0:00:07.5]} 63. Be8 {[%clk 0:00:03.4]} 63...
Be6 {[%clk 0:00:07.3]} 64. Bxf7 {[%clk 0:00:02.9]} 64... Bxf7 {[%clk 0:00:07.2]}
65. Kxf7 {[%clk 0:00:03.8]} 65... c4 {[%clk 0:00:07.8]} 66. Kxg6 {[%clk
0:00:04.7]} 66... c3 {[%clk 0:00:08.3]} 67. Kh7 {[%clk 0:00:04]} 67... c2 {[%clk
0:00:08.5]} 68. g6 {[%clk 0:00:04.9]} 68... c1=Q {[%clk 0:00:08.5]} 69. g7
{[%clk 0:00:05.8]} 69... Qc2+ {[%clk 0:00:08.6]} 70. Kh8 {[%clk 0:00:06.3]}
70... Qc3 {[%clk 0:00:08.1]} 71. Kh7 {[%clk 0:00:06.3]} 71... Qd3+ {[%clk
0:00:08.2]} 72. Kh6 {[%clk 0:00:06.5]} 72... Qg3 {[%clk 0:00:05.6]} 73. g8=Q
{[%clk 0:00:06.4]} 73... Qxg8 {[%clk 0:00:04.8]} 74. Kxh5 {[%clk 0:00:06.3]}
74... Qh7+ {[%clk 0:00:05.1]} 75. Kg5 {[%clk 0:00:06.5]} 75... Kc5 {[%clk
0:00:06]} 76. h5 {[%clk 0:00:07.4]} 76... Kd6 {[%clk 0:00:06.9]} 0-1

[Event "*** Titled Tuesday Blitz"]
[Site "Chess.com"]
[Date "2020.12.29"]
[Round "5"]
[White "1random"]
[Black "hurricane7791"]
[Result "0-1"]
[WhiteElo "2423"]
[BlackElo "2626"]
[TimeControl "180+1"]
[EndTime "10:56:26 PST"]
[Termination "hurricane7791 won by checkmate"]

1. e4 {[%clk 0:02:59.4]} 1... c5 {[%clk 0:02:59.6]} 2. Nf3 {[%clk 0:03:00.2]}
2... Nc6 {[%clk 0:02:59.7]} 3. d4 {[%clk 0:03:00.4]} 3... cxd4 {[%clk
0:03:00.6]} 4. Nxd4 {[%clk 0:03:01]} 4... Qb6 {[%clk 0:03:01.1]} 5. Nb3 {[%clk
0:03:00.7]} 5... Nf6 {[%clk 0:03:01.6]} 6. Nc3 {[%clk 0:03:01.1]} 6... e6 {[%clk
0:03:00.1]} 7. Be3 {[%clk 0:02:59.7]} 7... Qc7 {[%clk 0:02:59.4]} 8. Bd3 {[%clk
0:03:00.4]} 8... a6 {[%clk 0:02:59.6]} 9. f4 {[%clk 0:03:00.2]} 9... d6 {[%clk
0:02:59.7]} 10. g4 {[%clk 0:03:00]} 10... h6 {[%clk 0:02:59.9]} 11. Qf3 {[%clk
0:02:54.7]} 11... b5 {[%clk 0:02:59.4]} 12. h4 {[%clk 0:02:53]} 12... Nd7 {[%clk
0:02:56.3]} 13. O-O-O {[%clk 0:02:49.7]} 13... Bb7 {[%clk 0:02:48.1]} 14. g5
{[%clk 0:02:49.6]} 14... hxg5 {[%clk 0:02:48.1]} 15. hxg5 {[%clk 0:02:50.5]}
15... Rxh1 {[%clk 0:02:48.3]} 16. Rxh1 {[%clk 0:02:51.2]} 16... g6 {[%clk
0:02:49]} 17. Rh7 {[%clk 0:02:48.3]} 17... Nb4 {[%clk 0:02:46.9]} 18. Kb1 {[%clk
0:02:46.6]} 18... Nxd3 {[%clk 0:02:32.6]} 19. cxd3 {[%clk 0:02:47.5]} 19... d5
{[%clk 0:02:32.9]} 20. exd5 {[%clk 0:02:32.3]} 20... b4 {[%clk 0:02:33]} 21. Ne4
{[%clk 0:01:50.6]} 21... Bxd5 {[%clk 0:02:32.1]} 22. Rh8 {[%clk 0:00:57]} 22...
O-O-O {[%clk 0:02:15.8]} 23. Qe2 {[%clk 0:00:52.4]} 23... Kb8 {[%clk 0:02:11.9]}
24. Rh1 {[%clk 0:00:50]} 24... Qb7 {[%clk 0:02:06.9]} 25. Bd4 {[%clk 0:00:30.9]}
25... Rc8 {[%clk 0:02:03.3]} 26. Rc1 {[%clk 0:00:26]} 26... Rxc1+ {[%clk
0:02:03]} 27. Nxc1 {[%clk 0:00:23]} 27... a5 {[%clk 0:01:46.8]} 28. Nf6 {[%clk
0:00:23.2]} 28... Nxf6 {[%clk 0:01:45.2]} 29. Bxf6 {[%clk 0:00:24.1]} 29... Qc6
{[%clk 0:01:41.3]} 30. Be5+ {[%clk 0:00:23.7]} 30... Ka8 {[%clk 0:01:38.4]} 31.
Qh2 {[%clk 0:00:16.4]} 31... Kb7 {[%clk 0:01:30.3]} 32. Qh7 {[%clk 0:00:15.4]}
32... Qd7 {[%clk 0:01:27.7]} 33. Qg8 {[%clk 0:00:15.4]} 33... Bc5 {[%clk
0:01:16.4]} 34. Nb3 {[%clk 0:00:14]} 34... Bb6 {[%clk 0:01:10.4]} 35. Qf8 {[%clk
0:00:14.6]} 35... Bxb3 {[%clk 0:01:09.5]} 36. axb3 {[%clk 0:00:15.5]} 36...
Qxd3+ {[%clk 0:01:09.7]} 37. Ka2 {[%clk 0:00:16.2]} 37... Qd7 {[%clk 0:01:10]}
38. Bf6 {[%clk 0:00:08.5]} 38... Bc7 {[%clk 0:00:57.8]} 39. Be5 {[%clk
0:00:07.9]} 39... Bxe5 {[%clk 0:00:57.1]} 40. fxe5 {[%clk 0:00:08.5]} 40... Kb6
{[%clk 0:00:56.3]} 41. Qb8+ {[%clk 0:00:04.8]} 41... Qb7 {[%clk 0:00:56.3]} 42.
Qd6+ {[%clk 0:00:04.6]} 42... Qc6 {[%clk 0:00:55.5]} 43. Qd8+ {[%clk 0:00:04.9]}
43... Qc7 {[%clk 0:00:55.6]} 44. Qd4+ {[%clk 0:00:05]} 44... Kb7 {[%clk
0:00:54]} 45. Qe4+ {[%clk 0:00:03.9]} 45... Kb8 {[%clk 0:00:53.5]} 46. Qd4
{[%clk 0:00:03.8]} 46... Kc8 {[%clk 0:00:53.6]} 47. Qe4 {[%clk 0:00:03]} 47...
Kd7 {[%clk 0:00:53.2]} 48. Qd4+ {[%clk 0:00:03.1]} 48... Ke7 {[%clk 0:00:53]}
49. Qf4 {[%clk 0:00:03.4]} 49... Ke8 {[%clk 0:00:48.6]} 50. Qd4 {[%clk
0:00:03.2]} 50... Qd8 {[%clk 0:00:38]} 51. Qf4 {[%clk 0:00:03.3]} 51... Kf8
{[%clk 0:00:35.5]} 52. Qe3 {[%clk 0:00:03.5]} 52... Kg8 {[%clk 0:00:35]} 53. Qf4
{[%clk 0:00:04]} 53... Qd7 {[%clk 0:00:34.9]} 54. Qe3 {[%clk 0:00:04.5]} 54...
a4 {[%clk 0:00:35.2]} 55. Qf4 {[%clk 0:00:03.1]} 55... Qb5 {[%clk 0:00:34.5]}
56. Qe3 {[%clk 0:00:03]} 56... Qd5 {[%clk 0:00:34.5]} 57. Qg3 {[%clk 0:00:02.7]}
57... axb3+ {[%clk 0:00:33.4]} 58. Qxb3 {[%clk 0:00:02.9]} 58... Qxe5 {[%clk
0:00:34.3]} 59. Qxb4 {[%clk 0:00:03.2]} 59... Qxg5 {[%clk 0:00:34.9]} 60. Qb8+
{[%clk 0:00:02.4]} 60... Kg7 {[%clk 0:00:35.3]} 61. b4 {[%clk 0:00:03.1]} 61...
Qd5+ {[%clk 0:00:35]} 62. Ka3 {[%clk 0:00:03.3]} 62... e5 {[%clk 0:00:34.5]} 63.
b5 {[%clk 0:00:03.8]} 63... e4 {[%clk 0:00:34]} 64. b6 {[%clk 0:00:04.3]} 64...
e3 {[%clk 0:00:34.6]} 65. Qe8 {[%clk 0:00:02.5]} 65... Qc5+ {[%clk 0:00:34.2]}
66. Ka4 {[%clk 0:00:01.7]} 66... Qxb6 {[%clk 0:00:34.8]} 67. Qe5+ {[%clk
0:00:02.2]} 67... Qf6 {[%clk 0:00:34.6]} 68. Qxe3 {[%clk 0:00:01.9]} 68... g5
{[%clk 0:00:35]} 69. Kb3 {[%clk 0:00:01.9]} 69... Qe6+ {[%clk 0:00:34.5]} 70.
Qxe6 {[%clk 0:00:01.7]} 70... fxe6 {[%clk 0:00:35.4]} 71. Kc4 {[%clk 0:00:02.6]}
71... Kf6 {[%clk 0:00:36.1]} 72. Kd4 {[%clk 0:00:03.5]} 72... Kf5 {[%clk
0:00:37]} 73. Ke3 {[%clk 0:00:04.4]} 73... e5 {[%clk 0:00:37.2]} 74. Kf3 {[%clk
0:00:05.3]} 74... e4+ {[%clk 0:00:37.9]} 75. Kg3 {[%clk 0:00:06]} 75... Ke5
{[%clk 0:00:38.8]} 76. Kg4 {[%clk 0:00:06.9]} 76... Kd4 {[%clk 0:00:39.2]} 77.
Kg3 {[%clk 0:00:07.8]} 77... Kd3 {[%clk 0:00:39.4]} 78. Kf2 {[%clk 0:00:08.7]}
78... Kd2 {[%clk 0:00:40]} 79. Kf1 {[%clk 0:00:09.6]} 79... e3 {[%clk
0:00:40.9]} 80. Kg2 {[%clk 0:00:10.5]} 80... e2 {[%clk 0:00:41.8]} 81. Kf2
{[%clk 0:00:11.3]} 81... e1=Q+ {[%clk 0:00:41.7]} 82. Kg2 {[%clk 0:00:12.2]}
82... Qe4+ {[%clk 0:00:41.5]} 83. Kh2 {[%clk 0:00:12.9]} 83... Qg4 {[%clk
0:00:41]} 84. Kh1 {[%clk 0:00:13.8]} 84... Ke3 {[%clk 0:00:41.6]} 85. Kh2 {[%clk
0:00:14.4]} 85... Kf2 {[%clk 0:00:42.5]} 86. Kh1 {[%clk 0:00:01.2]} 86... Qg2#
{[%clk 0:00:43.4]} 0-1